bitfinex-derivatives/quotes_SOLF0:USTF0_20250125
["timestamp","ask_amount","ask_price","bid_price","bid_amount"]
[1737821068882,0.02582677,253.52,253.5,3.9448]
[1737821070487,0.02582677,253.52,253.48,3.9452]
[1737821070681,0.02582677,253.52,253.48,9.72676487]
[1737821070984,1.2605,253.67,253.49,9.15480967]
[1737821071184,3.9428,253.64,253.54,9.72676487]
[1737821071575,3.9428,253.64,253.59,3.9435]
[1737821071985,3.97012351,253.64,253.59,3.97118097]
[1737821072282,0.02732351,253.64,253.59,0.02768097]
[1737821072881,0.02732351,253.64,253.6,4.32282036]
[1737821073179,12.34586487,253.78,253.61,3.51688291]
[1737821073379,12.34586487,253.78,253.62,3.51665386]
[1737821073575,12.34586487,253.78,253.61,4.32282036]
[1737821073783,12.34586487,253.78,253.62,3.51323116]
[1737821073985,12.34586487,253.78,253.63,7.83681236]
[1737821074176,0.02836667,253.73,253.67,0.02790561]
[1737821076085,0.02836667,253.73,253.68,3.942]
[1737821076282,0.02836667,253.73,253.67,0.02790561]
[1737821076687,0.02836667,253.73,253.7,3.9418]
[1737821077289,0.02836667,253.73,253.67,0.02790561]
[1737821077484,0.02836667,253.73,253.68,3.9421]
[1737821077684,0.02836667,253.73,253.68,4.30619199]
[1737821077987,0.02836667,253.73,253.7,3.9418]
[1737821078290,0.02836667,253.73,253.67,0.02790561]
[1737821078484,0.02836667,253.73,253.71,3.9416]
[1737821079383,0.02836667,253.73,253.72,4.3010924]
[1737821079781,9.72676487,253.86,253.74,3.9411]
[1737821080084,9.72676487,253.86,253.72,4.3010924]
[1737821080292,9.72676487,253.86,253.73,3.49972717]
[1737821080486,9.72676487,253.86,253.78,3.9405]
[1737821080783,3.9398,253.83,253.73,11.17715498]
[1737821080979,0.0277421,253.85,253.79,0.02912757]
[1737821081185,9.72676487,253.86,253.79,0.02912757]
[1737821081384,3.9401,253.81,253.79,0.02912757]
[1737821082480,0.02587463,253.85,253.79,0.02912757]
[1737821082686,3.94,253.82,253.79,0.02912757]
[1737821082885,0.02587463,253.85,253.79,0.02912757]
[1737821083692,0.02587463,253.85,253.82,3.9399]
[1737821083885,0.02587463,253.85,253.79,0.02912757]
[1737821084090,0.02587463,253.85,253.8,9.09087765]
[1737821084291,0.02587463,253.85,253.81,9.09164204]
[1737821084494,0.02587463,253.85,253.83,3.9398]
[1737821084790,0.02587463,253.85,253.84,3.49703714]
[1737821085382,0.02587463,253.85,253.84,7.79376393]
[1737821085582,9.72676487,253.94,253.84,7.79376393]
[1737821085788,9.72676487,253.94,253.86,3.9393]
[1737821086587,9.72676487,253.94,253.87,3.49538463]
[1737821086791,3.9392,253.88,253.87,4.32331857]
[1737821086993,0.02687962,253.93,253.87,4.32331857]
[1737821087592,0.02687962,253.93,253.88,3.49816132]
[1737821087792,3.96517962,253.93,253.89,3.49816132]
[1737821087991,0.02687962,253.93,253.9,3.49816132]
[1737821088190,0.02687962,253.93,253.88,4.29672679]
[1737821088488,3.9386,253.91,253.89,3.49545812]
[1737821088692,9.72676487,253.9,253.87,0.02659178]
[1737821089197,3.939,253.88,253.87,0.02659178]
[1737821089396,3.939,253.88,253.87,3.52581763]
[1737821089996,3.939,253.88,253.87,14.7042021]
[1737821090391,3.939,253.88,253.87,11.20497625]
[1737821090687,3.939,253.88,253.87,0.02659178]
[1737821092495,0.02687962,253.93,253.87,0.02659178]
[1737821093393,0.02687962,253.93,253.9,3.9387]
[1737821093891,3.9386,253.91,253.88,19.76356325]
[1737821094091,0.02687962,253.93,253.88,19.76356325]
[1737821094798,0.02687962,253.93,253.87,0.02659178]
[1737821095803,0.02687962,253.93,253.88,3.9389]
[1737821095989,0.02687962,253.93,253.88,19.74126079]
[1737821096493,0.02687962,253.93,253.87,0.02659178]
[1737821096494,0.02687962,253.93,253.89,11.15810392]
[1737821096700,0.02687962,253.93,253.92,3.9384]
[1737821097594,0.02687962,253.93,253.92,8.22997843]
[1737821098198,0.02687962,253.93,253.92,15.09039991]
[1737821098595,0.02687962,253.93,253.92,8.22997843]
[1737821099295,10.99166487,254.09,253.92,4.29157843]
[1737821099501,10.99166487,254.09,253.98,3.9374]
[1737821099802,3.9363,254.06,253.98,3.9374]
[1737821100103,10.99166487,254.09,253.98,3.9374]
[1737821100300,3.9367,254.03,253.96,3.9376]
[1737821100495,3.9367,254.03,254.01,0.0289816]
[1737821102596,9.72676487,254.02,253.89,4.83900264]
[1737821102792,9.72676487,254.02,253.86,18.64316751]
[1737821103198,9.72676487,254.02,253.87,11.14628502]
[1737821103396,9.72676487,254.06,253.93,3.9382]
[1737821103598,0.02713571,254.02,253.97,0.02844539]
[1737821103898,3.9372,254.0,253.97,0.02844539]
[1737821104099,0.02713571,254.02,254.01,3.937]
[1737821104306,3.9352,254.13,254.01,9.72676487]
[1737821104604,9.72676487,254.18,254.01,9.72676487]
[1737821104897,3.9352,254.13,254.01,9.72676487]
[1737821105297,3.9352,254.13,254.02,4.28271168]
[1737821105504,0.0250639,254.1,254.04,0.02991151]
[1737821106401,0.0250639,254.1,254.05,3.9363]
[1737821106596,0.0250639,254.1,254.05,4.28271168]
[1737821107105,0.0250639,254.1,254.06,4.28271168]
[1737821107604,0.0250639,254.1,254.04,0.02991151]
[1737821108204,0.0250639,254.1,254.05,4.28620008]
[1737821108904,3.936,254.08,254.04,0.02991151]
[1737821111398,3.936,254.08,254.05,3.3950528]
[1737821111705,3.9607639,254.1,254.06,3.39438764]
[1737821111906,0.0250639,254.1,254.05,15.50400754]
[1737821112098,0.0250639,254.1,254.06,32.93082509]
[1737821112300,0.0250639,254.1,254.06,33.47253599]
[1737821112503,0.0250639,254.1,254.06,29.53643599]
[1737821112801,0.0250639,254.1,254.06,9.72676487]
[1737821113001,0.0250639,254.1,254.05,4.83900264]
[1737821113607,3.936,254.08,254.05,4.83900264]
[1737821113809,3.936,254.08,254.04,4.86891415]
[1737821114007,0.0250639,254.1,254.05,3.4005225]
[1737821114208,0.0250639,254.1,254.04,0.02991151]
[1737821114909,0.0250639,254.1,254.05,24.69950259]
[1737821115109,3.9363,254.06,254.05,24.69950259]
[1737821115303,3.9363,254.06,254.04,0.02991151]
[1737821116507,3.9363,254.06,254.01,4.83900264]
[1737821116508,3.9368,254.02,254.01,4.83900264]
[1737821116909,9.72676487,254.07,253.98,4.83900264]
[1737821117305,3.9373,253.99,253.98,4.83900264]
[1737821117501,3.9373,253.99,253.97,4.83900264]
[1737821118001,0.02751539,254.01,253.97,4.83900264]
[1737821118509,0.02751539,254.01,253.96,0.02557324]
[1737821119112,3.9374,253.99,253.96,0.02557324]
[1737821119314,3.9374,253.99,253.97,8.05681549]
[1737821119610,3.9374,253.99,253.96,0.02557324]
[1737821119910,3.9373,254.0,253.97,3.41342761]
[1737821120114,3.9373,254.0,253.96,0.02557324]
[1737821120311,3.9373,254.0,253.97,3.41391087]
[1737821120605,0.02751539,254.01,253.96,0.02557324]
[1737821120906,0.02751539,254.01,253.97,3.41579531]
[1737821121111,9.72676487,254.28,254.04,3.9365]
[1737821121112,9.72676487,254.15,254.04,3.9365]
[1737821121312,9.72676487,254.15,254.01,9.72676487]
[1737821121604,9.72676487,254.19,254.02,13.52249721]
[1737821121805,9.72676487,254.19,254.03,8.05933733]
[1737821122003,9.72676487,254.19,254.04,13.51972289]
[1737821122202,3.9354,254.12,254.09,0.02702297]
[1737821122406,0.02553407,254.14,254.09,0.02702297]
[1737821122606,3.96063407,254.14,254.09,0.02702297]
[1737821122904,0.02553407,254.14,254.09,0.02702297]
[1737821123409,3.9353,254.12,254.09,0.02702297]
[1737821124004,9.72676487,254.11,254.0,4.83621309]
[1737821124512,3.936,254.08,254.01,4.33441272]
[1737821124714,2.6619,254.1,254.01,4.33441272]
[1737821125011,1.3344,254.1,254.01,4.33441272]
[1737821125213,3.9361,254.07,254.03,0.02773058]
[1737821126013,0.02680783,254.08,254.03,0.02773058]
[1737821126512,0.02680783,254.08,254.05,3.9364]
[1737821130009,7.83e-06,254.08,254.06,3.9362]
[1737821130216,1.3602,254.22,254.04,9.72676487]
[1737821130412,1.3602,254.22,254.08,9.72676487]
[1737821131116,3.9339,254.22,254.13,3.935]
[1737821131319,0.02516691,254.18,254.12,0.02778482]
[1737821131712,0.02516691,254.18,254.16,3.9346]
[1737821132710,9.72676487,254.27,254.13,1.3016]
[1737821132916,9.72676487,254.31,254.14,1.268]
[1737821133520,9.72676487,254.41,254.25,9.72676487]
[1737821133719,11.03146487,254.41,254.25,9.72676487]
[1737821133920,3.9319,254.34,254.3,0.0289017]
[1737821134113,11.03146487,254.41,254.3,0.0289017]
[1737821134417,9.72676487,254.37,254.3,0.0289017]
[1737821135112,3.9323,254.32,254.3,0.0289017]
[1737821135318,1.3047,254.41,254.14,1.268]
[1737821135319,9.72676487,254.33,254.17,9.72676487]
[1737821136118,3.9329,254.28,254.22,3.9337]
[1737821136314,9.72676487,254.37,254.22,3.9337]
[1737821136519,0.02765672,254.28,254.22,3.96201591]
[1737821138320,3.933,254.27,254.22,0.02831591]
[1737821140322,0.02765672,254.28,254.22,3.96201591]
[1737821142115,3.933,254.27,254.22,3.96201591]
[1737821143820,3.9331,254.27,254.22,0.02831591]
[1737821144020,0.02765672,254.28,254.22,0.02831591]
[1737821144324,1.3707,254.27,254.22,0.02831591]
[1737821144915,0.02765672,254.28,254.22,0.02831591]
[1737821145822,3.96045672,254.28,254.24,3.9333]
[1737821146629,0.02765672,254.28,254.22,0.02831591]
[1737821148028,0.02765672,254.28,254.27,3.933]
[1737821148638,3.9707,254.39,254.25,9.72676487]
[1737821148829,3.9707,254.39,254.29,3.9326]
[1737821149225,3.9707,254.39,254.27,3.9329]
[1737821149629,3.9707,254.39,254.25,9.72676487]
[1737821149836,3.932,254.34,254.3,0.02883217]
[1737821151935,3.9707,254.39,254.3,0.02883217]
[1737821152135,9.72676487,254.46,254.3,0.02883217]
[1737821152336,1.3452,254.5,254.37,9.72676487]
[1737821152637,3.9302,254.45,254.37,9.72676487]
[1737821152837,1.3452,254.5,254.39,3.931]
[1737821153336,3.9304,254.44,254.38,0.02600456]
[1737821154335,3.9304,254.44,254.38,3.95730456]
[1737821154936,1.3251,254.53,254.38,0.02600456]
[1737821155138,1.2649,254.52,254.38,0.02600456]
[1737821156435,3.9304,254.44,254.38,0.02600456]
[1737821156938,9.72676487,254.5,254.38,0.02600456]
[1737821157137,3.931,254.4,254.38,0.02600456]
[1737821158139,9.72676487,254.42,254.26,9.72676487]
[1737821158343,3.9322,254.32,254.26,9.72676487]
[1737821158742,3.9321,254.33,254.27,3.9329]
[1737821159144,3.9323,254.41,254.26,9.72676487]
[1737821159442,0.02596366,254.33,254.28,3.9327]
[1737821159643,0.02596366,254.33,254.27,0.02547296]
[1737821161345,0.02596366,254.33,254.31,3.9323]
[1737821162143,9.72676487,254.5,254.3,9.72676487]
[1737821162342,3.9308,254.41,254.3,9.72676487]
[1737821162644,11.03876487,254.5,254.3,9.72676487]
[1737821162944,11.03876487,254.5,254.19,5.2853]
[1737821162945,11.03876487,254.5,254.34,9.72676487]
[1737821163449,9.72676487,254.46,254.39,0.0272021]
[1737821163842,9.72676487,254.42,254.39,0.0272021]
[1737821164039,9.72676487,254.42,254.22,9.72676487]
[1737821164339,9.72676487,254.38,254.22,3.9336]
[1737821164541,1.2581,254.37,254.22,3.9336]
[1737821164735,9.72676487,254.33,254.18,9.72676487]
[1737821164940,9.72676487,254.28,254.15,3.9348]
[1737821165241,9.72676487,254.24,254.09,9.72676487]
[1737821165444,3.9351,254.14,254.05,9.72676487]
[1737821165641,9.72676487,254.16,254.01,14.56609905]
[1737821165841,9.72676487,254.12,254.02,4.89632293]
[1737821166037,9.72676487,254.12,254.01,4.83933418]
[1737821166240,9.72676487,254.16,254.01,9.72676487]
[1737821166639,9.72676487,254.16,254.06,0.02907168]
[1737821166835,0.02913875,254.11,254.06,0.02907168]
[1737821167246,9.72676487,254.07,254.06,7.168e-05]
[1737821167647,3.936,254.08,254.06,7.168e-05]
[1737821167846,16.73121325,254.1,253.89,1.3128]
[1737821168142,15.47351325,254.04,253.86,1.3613]
[1737821168349,15.47351325,254.0,253.82,4.83933418]
[1737821168549,15.47351325,254.0,253.87,4.3012437]
[1737821168749,3.9369,254.02,253.9,3.9387]
[1737821168947,2.8,254.07,253.87,19.77475695]
[1737821169151,2.8,254.07,253.91,0.02754936]
[1737821169350,3.9362,254.07,253.95,3.9378]
[1737821169552,15.47351325,254.08,253.87,15.47351325]
[1737821169749,1.2577,254.1,253.88,8.45293965]
[1737821169750,15.47351325,254.04,253.88,8.45293965]
[1737821170056,15.47351325,254.04,253.89,8.45170626]
[1737821170351,0.0302122,253.99,253.94,0.02597934]
[1737821170749,3.9376,253.98,253.85,3.9393]
[1737821170949,0.02514455,253.99,253.94,0.02678189]
[1737821171347,15.47351325,254.04,253.8,15.47351325]
[1737821171554,0.02661378,253.99,253.94,0.02765764]
[1737821173251,3.9379,253.96,253.94,0.02765764]
[1737821173555,0.02661378,253.99,253.94,0.02765764]
[1737821174857,0.02661378,253.99,253.94,3.96565764]
[1737821175254,0.02661378,253.99,253.94,0.02765764]
[1737821176759,0.02661378,253.99,253.97,3.9376]
[1737821176955,1.2862,254.13,253.96,15.47351325]
[1737821177249,15.47351325,254.17,253.97,4.87117004]
[1737821177451,3.9349,254.15,253.96,15.47351325]
[1737821177652,3.9349,254.15,253.97,4.86964172]
[1737821177956,3.9361,254.07,253.98,8.80652195]
[1737821178149,0.02534654,254.09,254.03,0.02521241]
[1737821178551,15.47351325,254.15,254.03,0.02521241]
[1737821178854,0.02686907,254.09,254.03,0.02521241]
[1737821179050,3.936,254.08,254.03,0.02521241]
[1737821179458,0.02686907,254.09,254.03,0.02521241]
[1737821180053,0.02686907,254.09,254.03,15.49872566]
[1737821181157,3.9337,254.23,254.03,15.49872566]
[1737821181460,1.2656,254.25,254.11,15.47351325]
[1737821182159,6.5121,254.26,254.11,15.47351325]
[1737821182560,6.5121,254.26,254.18,3.9342]
[1737821182861,1.3252,254.34,254.15,0.02743596]
[1737821183262,3.9329,254.28,254.21,3.9339]
[1737821183461,1.3252,254.34,254.22,0.02535864]
[1737821183857,3.9324,254.31,254.22,0.02535864]
[1737821184160,1.3252,254.34,254.22,0.02535864]
[1737821186561,3.9328,254.29,254.22,3.95895864]
[1737821187859,3.9328,254.29,254.22,0.02535864]
[1737821188161,1.3252,254.34,254.22,0.02535864]
[1737821188360,15.47351325,254.39,254.22,0.02535864]
[1737821188557,15.47351325,254.39,254.22,3.9336]
[1737821188863,3.9327,254.29,254.28,0.02926415]
[1737821189562,3.9338,254.22,254.13,1.2474]
[1737821190764,0.03020073,254.2,254.15,0.02567438]
[1737821191655,3.9343,254.19,254.15,0.02567438]
[1737821192160,0.03020073,254.2,254.15,0.02567438]
[1737821192663,0.03020073,254.2,254.15,3.96047438]
[1737821192859,0.03020073,254.2,254.15,0.02567438]
[1737821194069,3.9346,254.17,254.15,0.02567438]
[1737821195169,0.03020073,254.2,254.15,0.02567438]
[1737821195669,0.03020073,254.2,254.19,3.9342]
[1737821195871,3.9328,254.29,254.16,2.6178]
[1737821196169,195.0,254.37,254.16,3.9897]
[1737821196369,3.9328,254.28,254.16,3.9897]
[1737821197070,3.9328,254.28,254.22,3.9336]
[1737821198070,3.933,254.27,254.22,3.9336]
[1737821198472,3.933,254.27,254.22,3.96186883]
[1737821199466,3.9336,254.24,254.22,0.02826883]
[1737821201371,15.47351325,254.3,254.22,0.02826883]
[1737821201670,3.9336,254.23,254.22,0.02826883]
[1737821203464,3.9324,254.31,254.22,0.02826883]
[1737821203670,15.47351325,254.34,254.22,0.02826883]
[1737821205669,9.65224714,254.32,254.22,0.02826883]
[1737821206372,9.65224714,254.36,254.22,0.02826883]
[1737821206774,195.0,254.37,254.23,9.65224714]
[1737821206977,195.0,254.37,254.23,10.97064714]
[1737821207164,195.0,254.37,254.27,9.67831789]
[1737821207366,195.0,254.37,254.3,3.9324]
[1737821207367,198.9316,254.37,254.3,3.9324]
[1737821207570,9.65224714,254.44,254.27,9.67831789]
[1737821207776,3.9311,254.4,254.33,3.932]
[1737821208074,2.6062,254.49,254.27,15.42691805]
[1737821208268,2.6062,254.49,254.34,0.025951]
[1737821209469,3.9313,254.38,254.34,0.025951]
[1737821209674,15.42691805,254.48,254.34,0.025951]
[1737821209875,15.42691805,254.44,254.34,0.025951]
[1737821210169,3.9314,254.37,254.34,0.025951]
[1737821210769,210.42691805,254.48,254.34,0.025951]
[1737821211365,3.9313,254.38,254.34,0.025951]
[1737821211778,210.42691805,254.48,254.34,0.025951]
[1737821213474,3.9316,254.36,254.34,0.025951]
[1737821215474,3.9316,254.36,254.34,5.1e-05]
[1737821218175,3.96025559,254.38,254.34,5.1e-05]
[1737821220179,0.02895559,254.38,254.34,5.1e-05]
[1737821220373,3.9317,254.36,254.34,5.1e-05]
[1737821220770,3.9317,254.35,254.34,5.1e-05]
[1737821225778,0.02895559,254.38,254.34,5.1e-05]
[1737821226177,2.5421,254.53,254.34,5.1e-05]
[1737821226876,2.5421,254.53,254.35,15.42691805]
[1737821227083,2.5421,254.53,254.33,1.3477]
[1737821227084,1.2609,254.53,254.39,15.42691805]
[1737821227281,1.2609,254.53,254.39,15.4522709]
[1737821227878,3.9299,254.47,254.39,15.4522709]
[1737821228082,1.3086,254.56,254.39,15.4522709]
[1737821228381,1.3086,254.56,254.39,15.42691805]
[1737821228578,3.9292,254.52,254.45,0.02971381]
[1737821228878,1.3086,254.56,254.45,0.02971381]
[1737821230084,15.42691805,254.62,254.45,0.02971381]
[1737821230279,15.42691805,254.62,254.4,1.3593]
[1737821230477,3.9289,254.54,254.51,0.02811463]
[1737821231383,3.9291,254.53,254.51,0.02811463]
[1737821233283,15.42691805,254.62,254.51,0.02811463]
[1737821233474,195.0,254.76,254.47,15.42691805]
[1737821233475,15.42691805,254.7,254.47,15.42691805]
[1737821233675,15.42691805,254.7,254.45,2.74]
[1737821233676,9.6224931,254.71,254.55,9.6224931]
[1737821233884,9.6224931,254.68,254.55,2.6697]
[1737821234184,9.6224931,254.68,254.6,0.02507297]
[1737821234784,3.9277,254.61,254.6,0.02507297]
[1737821237378,3.9277,254.61,254.6,7.297e-05]
[1737821241688,2.5458,254.62,254.44,9.6224931]
[1737821241992,3.93,254.47,254.44,9.6224931]
[1737821242192,9.6224931,254.57,254.44,9.6224931]
[1737821242390,3.9299,254.47,254.44,9.6224931]
[1737821242885,0.02801376,254.48,254.44,9.6224931]
[1737821243487,0.02801376,254.48,254.43,0.03024016]
[1737821244489,9.6224931,254.57,254.43,0.03024016]
[1737821244986,9.6224931,254.61,254.44,9.6224931]
[1737821245695,9.6224931,254.61,254.5,0.0290331]
[1737821246194,3.9294,254.51,254.5,0.0290331]
[1737821246389,3.9294,254.51,254.5,3.31e-05]
[1737821248892,3.9292,254.52,254.5,3.31e-05]
[1737821249092,0.02590295,254.53,254.5,3.31e-05]
[1737821249393,3.95490295,254.53,254.5,3.31e-05]
[1737821249795,0.02590295,254.53,254.5,3.31e-05]
[1737821250790,0.02590295,254.53,254.51,3.9292]
[1737821251387,0.02590295,254.53,254.5,3.31e-05]
[1737821252288,9.6224931,254.65,254.5,3.31e-05]
[1737821252596,9.6224931,254.69,254.52,9.6224931]
[1737821253597,9.6224931,254.69,254.58,0.02950862]
[1737821254499,9.6224931,254.73,254.62,3.9275]
[1737821254697,9.6224931,254.73,254.56,9.6224931]
[1737821255001,9.6224931,254.73,254.65,0.02568864]
[1737821255700,3.9269,254.67,254.65,0.02568864]
[1737821256992,3.9264,254.7,254.65,0.02568864]
[1737821257392,2.5684,254.75,254.65,0.02568864]
[1737821257992,3.926,254.72,254.65,0.02568864]
[1737821258195,2.5684,254.75,254.65,0.02568864]
[1737821258802,3.9269,254.67,254.65,0.02568864]
[1737821261307,3.9266,254.69,254.65,0.02568864]
[1737821261507,9.6224931,254.73,254.65,0.02568864]
[1737821262614,3.9265,254.69,254.65,0.02568864]
[1737821263305,9.6224931,254.76,254.65,0.02568864]
[1737821263916,3.9266,254.68,254.65,0.02568864]
[1737821264713,9.6224931,254.73,254.65,0.02568864]
[1737821265018,3.927,254.66,254.65,0.02568864]
[1737821270120,3.927,254.66,254.65,8.864e-05]
[1737821270621,3.9267,254.68,254.65,8.864e-05]
[1737821271014,9.6224931,254.75,254.65,8.864e-05]
[1737821271311,3.9268,254.67,254.65,8.864e-05]
[1737821271821,3.95481492,254.69,254.65,8.864e-05]
[1737821272012,0.02821492,254.69,254.65,8.864e-05]
[1737821272411,3.9266,254.68,254.65,8.864e-05]
[1737821274319,0.02821492,254.69,254.65,8.864e-05]
[1737821274515,9.6224931,254.87,254.66,9.6224931]
[1737821274713,1.3682,254.85,254.71,9.6224931]
[1737821274913,3.9256,254.75,254.71,9.6224931]
[1737821275121,1.3682,254.85,254.71,9.6224931]
[1737821275423,3.9253,254.77,254.71,9.6224931]
[1737821275815,3.9251,254.78,254.72,3.926]
[1737821276020,1.3682,254.85,254.74,9.6224931]
[1737821276419,3.9244,254.83,254.77,0.02900653]
[1737821276620,1.3682,254.85,254.77,0.02900653]
[1737821276915,1.3089,254.88,254.77,0.02900653]
[1737821277115,3.9243,254.84,254.77,0.02900653]
[1737821277415,83.1224931,254.9,254.77,0.02900653]
[1737821278017,3.9247,254.81,254.77,0.02900653]
[1737821278219,9.6224931,254.87,254.77,0.02900653]
[1737821278518,3.9245,254.82,254.77,0.02900653]
[1737821278723,9.6224931,254.87,254.77,0.02900653]
[1737821279123,3.9242,254.84,254.77,0.02900653]
[1737821279325,9.6224931,254.87,254.77,0.02900653]
[1737821279822,3.9247,254.81,254.77,0.02900653]
[1737821280024,9.6224931,254.87,254.77,0.02900653]
[1737821280226,3.9251,254.79,254.77,0.02900653]
[1737821280425,3.9251,254.79,254.77,6.53e-06]
[1737821280919,13.5475931,254.79,254.77,6.53e-06]
[1737821282628,3.9251,254.79,254.77,6.53e-06]
[1737821283228,0.02934946,254.81,254.77,6.53e-06]
[1737821284329,3.9251,254.79,254.77,6.53e-06]
[1737821287632,0.02934946,254.81,254.77,6.53e-06]
[1737821288031,3.95414946,254.81,254.77,6.53e-06]
[1737821288526,0.02934946,254.81,254.77,6.53e-06]
[1737821289328,3.925,254.79,254.77,6.53e-06]
[1737821300141,3.9251,254.78,254.77,6.53e-06]
[1737821304140,3.9248,254.8,254.77,6.53e-06]
[1737821304345,0.02934946,254.81,254.77,6.53e-06]
[1737821306347,0.02934946,254.81,254.8,3.9248]
[1737821309846,3.9235,254.89,254.77,6.53e-06]
[1737821310049,9.6224931,254.92,254.78,9.6224931]
[1737821310352,3.9239,254.86,254.8,3.9246]
[1737821310546,9.6224931,254.92,254.8,3.9246]
[1737821310748,9.6224931,254.92,254.78,9.6224931]
[1737821310947,9.6224931,254.92,254.82,0.0290414]
[1737821311647,6.14924983,254.88,254.82,0.0290414]
[1737821312048,3.9238,254.87,254.82,0.0290414]
[1737821312347,6.14924983,254.88,254.82,0.0290414]
[1737821312851,10.07294983,254.88,254.83,3.9243]
[1737821313454,1.3295,254.95,254.82,0.0290414]
[1737821313455,6.14924983,254.86,254.82,0.0290414]
[1737821314942,3.9242,254.84,254.82,0.0290414]
[1737821315549,3.9243,254.83,254.82,0.0290414]
[1737821315955,6.14924983,254.84,254.74,6.14924983]
[1737821316155,6.14924983,254.82,254.74,6.14924983]
[1737821316355,3.9251,254.79,254.74,6.14924983]
[1737821316555,6.14924983,254.78,254.7,6.14924983]
[1737821316955,6.14924983,254.82,254.74,6.14924983]
[1737821317153,0.02518769,254.77,254.74,6.14924983]
[1737821319058,0.02518769,254.77,254.76,6.14924983]
[1737821320551,6.14924983,254.88,254.8,6.14924983]
[1737821320751,6.14924983,254.86,254.78,6.14924983]
[1737821321160,6.14924983,254.88,254.8,3.9248]
[1737821321357,6.14924983,254.88,254.78,6.14924983]
[1737821321557,6.14924983,254.86,254.8,0.02582882]
[1737821321759,3.9243,254.84,254.78,3.9251]
[1737821321959,6.14924983,254.84,254.8,0.02702389]
[1737821322464,3.9244,254.83,254.8,0.02702389]
[1737821322756,6.14924983,254.84,254.8,0.02702389]
[1737821322961,6.14924983,254.86,254.8,0.02702389]
[1737821323257,3.9242,254.84,254.8,0.02702389]
[1737821324061,6.14924983,254.86,254.8,0.02702389]
[1737821324361,6.14924983,254.84,254.8,0.02702389]
[1737821324558,6.14924983,254.82,254.8,0.02702389]
[1737821325862,6.14924983,254.84,254.8,0.02702389]
[1737821326061,3.9245,254.82,254.8,0.02702389]
[1737821326569,6.14924983,254.89,254.8,0.02702389]
[1737821326869,3.9239,254.86,254.8,3.95172389]
[1737821327062,6.14924983,254.89,254.8,0.02702389]
[1737821328069,3.9243,254.83,254.8,0.02702389]
[1737821328364,6.14924983,254.89,254.8,0.02702389]
[1737821330168,3.9243,254.84,254.8,0.02702389]
[1737821330571,6.14924983,254.89,254.8,0.02702389]
[1737821330866,6.14924983,254.82,254.71,6.14924983]
[1737821331369,6.14924983,254.82,254.74,6.14924983]
[1737821331571,3.9253,254.77,254.74,6.14924983]
[1737821331966,6.14924983,254.85,254.74,6.14924983]
[1737821332171,0.02800839,254.78,254.74,6.14924983]
[1737821334169,0.02800839,254.78,254.74,10.07494983]
[1737821334767,0.02800839,254.78,254.75,3.9255]
[1737821334965,0.02800839,254.78,254.74,6.14924983]
[1737821335168,0.02800839,254.78,254.77,6.14924983]
[1737821335568,0.02800839,254.78,254.77,10.07454983]
[1737821338270,0.02800839,254.78,254.77,6.14924983]
[1737821339073,0.02800839,254.78,254.77,10.07454983]
[1737821339273,6.14924983,254.91,254.77,6.14924983]
[1737821339477,6.14924983,254.91,254.8,6.14924983]
[1737821340375,6.14924983,254.91,254.83,0.03005781]
[1737821340875,6.14924983,254.88,254.83,0.03005781]
[1737821342081,3.9242,254.84,254.83,0.03005781]
[1737821346478,10.07344983,254.84,254.83,5.781e-05]
[1737821354887,12.59364983,254.84,254.83,5.781e-05]
[1737821356193,8.66944983,254.84,254.68,6.14924983]
[1737821356492,6.14924983,254.76,254.68,6.14924983]
[1737821357087,6.14924983,254.78,254.7,6.14924983]
[1737821357289,6.14924983,254.8,254.72,6.14924983]
[1737821357489,0.02982486,254.77,254.72,6.14924983]
[1737821357988,3.9255,254.76,254.72,6.14924983]
[1737821358193,0.02982486,254.77,254.72,6.14924983]
[1737821359195,3.9259,254.74,254.72,6.14924983]
[1737821359396,0.02982486,254.77,254.71,0.02665321]
[1737821359798,3.9259,254.73,254.71,0.02665321]
[1737821359999,0.02982486,254.77,254.71,0.02665321]
[1737821360197,3.926,254.72,254.71,0.02665321]
[1737821366708,3.926,254.72,254.71,5.321e-05]
[1737821369403,3.928,254.6,254.56,7.41704983]
[1737821369806,6.14924983,254.65,254.56,7.41704983]
[1737821370202,3.9279,254.6,254.56,6.14924983]
[1737821370706,0.02710942,254.61,254.58,6.14924983]
[1737821370904,0.02710942,254.61,254.6,6.14924983]
[1737821371103,6.14924983,254.73,254.6,6.14924983]
[1737821371307,3.9265,254.7,254.65,6.14924983]
[1737821371602,6.14924983,254.77,254.67,6.14924983]
[1737821372106,3.9264,254.7,254.67,6.14924983]
[1737821372406,3.9264,254.7,254.69,0.02817319]
[1737821378006,6.17539791,254.75,254.69,0.02817319]